bitfinex/quotes_ETHUSD_20230702
["timestamp","ask_amount","ask_price","bid_price","bid_amount"]
[1688322414229,10.47496314,1909.9,1909.6,7.341112]
[1688322415231,10.47496314,1909.9,1909.6,2.104472]
[1688322416313,0.00298314,1909.9,1909.6,7.341122]
[1688322416521,0.00298314,1909.9,1909.7,1.2141122]
[1688322418044,0.00298314,1909.9,1909.7,6.4505322]
[1688322418347,0.00298314,1909.9,1909.7,1.2141122]
[1688322419942,5.23887314,1909.9,1909.7,1.2141122]
[1688322420812,10.47476314,1909.9,1909.7,1.2141122]
[1688322421019,10.47476314,1909.9,1909.7,0.48]
[1688322421606,10.47476314,1909.9,1909.2,12.41735]
[1688322421812,21.28821498,1909.9,1909.3,0.957]
[1688322422052,21.28821498,1909.9,1909.0,3.0]
[1688322422053,2.68752184,1909.8,1909.0,3.0]
[1688322422238,2.68752184,1909.8,1909.0,3.4989]
[1688322422239,13.092,1909.6,1909.0,3.4989]
[1688322422440,13.092,1909.6,1909.0,2.06869]
[1688322422646,13.092,1909.6,1909.0,5.06869]
[1688322423165,13.092,1909.6,1908.8,3.21180283]
[1688322423166,0.00294946,1909.5,1908.8,3.21180283]
[1688322423374,5.23754,1909.3,1908.8,9.69666]
[1688322423524,5.23754,1909.3,1908.8,7.86656]
[1688322423720,5.23754,1909.3,1908.9,0.952]
[1688322424154,0.00292766,1909.2,1908.9,0.952]
[1688322424431,0.00292766,1909.2,1908.9,7.500433]
[1688322425048,0.00292766,1909.2,1908.9,2.261833]
[1688322425246,0.00292766,1909.2,1909.0,0.48]
[1688322427430,0.00292766,1909.2,1908.9,0.952]
[1688322431366,13.09745766,1909.2,1908.7,0.41589336]
[1688322431568,13.09745766,1909.2,1908.8,0.48]
[1688322431569,16.65960343,1909.2,1908.8,0.48]
[1688322431873,14.04071343,1909.2,1908.7,0.48]
[1688322432649,17.61860343,1909.2,1908.6,0.1]
[1688322432960,20.30612527,1909.2,1908.6,0.1]
[1688322439155,20.30319761,1909.2,1908.6,0.1]
[1688322439371,10.4769,1909.0,1908.6,0.1]
[1688322442877,10.4769,1909.0,1908.6,0.05]
[1688322447177,10.4769,1909.0,1908.6,5.28938]
[1688322447390,2.2524,1909.2,1908.7,0.961]
[1688322447689,2.2524,1909.2,1908.7,11.43912]
[1688322448191,5.23781,1909.2,1908.7,13.019614]
[1688322448389,5.23781,1909.2,1908.8,0.48]
[1688322448691,10.47562,1909.2,1908.8,5.71878]
[1688322449089,13.09451,1909.2,1908.8,5.71878]
[1688322452170,13.09451,1909.2,1908.8,5.23878]
[1688322452769,13.09451,1909.2,1908.7,13.019484]
[1688322452964,13.09451,1909.2,1908.7,7.780454]
[1688322453463,13.09451,1909.2,1908.7,7.730454]
[1688322455167,13.09451,1909.2,1908.8,0.957]
[1688322456104,13.09451,1909.2,1908.7,13.010474]
[1688322457397,13.09451,1909.2,1908.8,7.9708374]
[1688322457398,5.23781,1909.2,1908.8,7.9708374]
[1688322457600,0.01653963,1909.3,1909.0,0.952]
[1688322460603,0.01653963,1909.3,1909.0,6.19029]
[1688322460811,30.56,1909.6,1909.0,10.47663]
[1688322461005,7.54168,1909.7,1909.3,0.957]
[1688322461210,7.54168,1909.7,1909.3,5.23746]
[1688322461211,2.3052,1909.7,1909.3,5.23746]
[1688322461509,0.41108144,1909.7,1909.4,0.523746]
[1688322461820,37.32541,1909.9,1909.4,0.523746]
[1688322461821,5.23617,1909.8,1909.4,0.523746]
[1688322462010,7.54137,1909.8,1909.5,0.952]
[1688322462307,0.00385913,1909.6,1909.5,0.952]
[1688322463106,7.54137,1909.8,1909.5,0.952]
[1688322463521,2.3052,1909.8,1909.5,0.952]
[1688322464219,0.00385618,1909.7,1909.5,0.952]
[1688322465387,0.00385618,1909.7,1909.4,0.961]
[1688322465721,8.6130068,1909.7,1909.3,1.6217]
[1688322465895,8.6130068,1909.7,1909.1,0.961]
[1688322465896,0.01653963,1909.6,1909.1,0.961]
[1688322466222,0.01653963,1909.6,1909.1,2.6308]
[1688322466223,5.25722413,1909.6,1909.1,2.6308]
[1688322466733,10.49406413,1909.6,1909.1,2.6308]
[1688322466897,13.11240413,1909.6,1908.9,5.73841999]
[1688322467089,7.44908,1909.5,1909.0,3.1008]
[1688322468196,12.69057193,1909.5,1909.0,3.1008]
[1688322468809,12.69057193,1909.5,1909.0,8.33911]
[1688322469897,12.69057193,1909.5,1909.0,1.431]
[1688322470098,12.69057193,1909.5,1909.0,0.951]
[1688322470421,14.55303843,1909.5,1909.0,0.951]
[1688322470734,4.07867843,1909.5,1909.0,11.42766]
[1688322470928,7.45327193,1909.5,1909.0,11.42766]
[1688322476334,2.21621193,1909.5,1909.0,11.42766]
[1688322478528,7.45323193,1909.5,1909.0,11.42766]
[1688322479108,7.45323193,1909.5,1909.0,6.18932]
[1688322479307,12.69025193,1909.5,1909.0,0.951]
[1688322479507,1.26902519,1909.4,1909.0,0.951]
[1688322479731,1.26902519,1909.4,1908.9,13.01887]
[1688322479915,2.91122519,1909.4,1908.9,13.01887]
[1688322480306,1.6422,1909.4,1908.9,13.01887]
[1688322482548,6.87947,1909.4,1908.9,13.01887]
[1688322483135,6.87947,1909.4,1908.9,7.78036]
[1688322483336,6.87947,1909.4,1908.9,2.5419]
[1688322484518,6.87947,1909.4,1908.9,7.78047]
[1688322484719,6.87947,1909.4,1908.9,13.01908]
[1688322485824,6.87947,1909.4,1908.9,7.78047]
[1688322486149,8.312308,1909.4,1908.9,7.78047]
[1688322490105,1.432838,1909.4,1909.0,0.959]
[1688322490311,2.2119,1909.5,1909.1,5.23793]
[1688322490706,2.2119,1909.5,1909.1,5.18793]
[1688322491133,2.21621193,1909.5,1909.1,6.79533]
[1688322500348,2.21621193,1909.5,1909.1,12.0334]
[1688322500517,0.00431193,1909.5,1909.2,0.961]
[1688322500729,0.00431193,1909.5,1909.3,11.43181]
[1688322501160,30.56,1909.8,1909.3,11.43181]
[1688322501346,9.0923,1909.9,1909.3,11.43181]
[1688322501668,9.0923,1909.9,1909.3,12.836879]
[1688322502066,9.0923,1909.9,1909.4,1.5813]
[1688322502253,0.00348108,1909.8,1909.4,6.81848]
[1688322503233,9.0923,1909.9,1909.4,12.05572]
[1688322503971,14.32827,1909.9,1909.4,12.05572]
[1688322504168,0.00348108,1909.8,1909.4,12.05572]
[1688322504358,5.23970108,1909.8,1909.4,12.05572]
[1688322509049,0.00348108,1909.8,1909.4,12.05572]
[1688322510163,17.00659893,1909.9,1909.4,12.05572]
[1688322511189,0.00348108,1909.8,1909.4,12.05572]
[1688322511349,0.00348108,1909.8,1909.4,13.7593699]
[1688322512156,9.52513593,1909.9,1909.4,13.7593699]
[1688322512364,5.23615,1909.8,1909.4,12.05572]
[1688322513387,0.00347056,1909.7,1909.4,12.05572]
[1688322515390,14.7447263,1909.9,1909.4,12.05572]
[1688322516189,0.00348108,1909.8,1909.4,12.05572]
[1688322517290,14.7447263,1909.9,1909.4,12.05572]
[1688322517494,1.47447263,1909.8,1909.4,12.05572]
[1688322518000,1.47447263,1909.8,1909.4,6.81848]
[1688322518168,0.00347056,1909.7,1909.4,6.81848]
[1688322518369,0.02001019,1909.7,1909.4,6.81848]
[1688322526165,0.02001019,1909.7,1909.4,1.5813]
[1688322527298,0.02001019,1909.7,1909.4,6.81852]
[1688322531573,0.69307447,1909.7,1909.4,1.5813]
[1688322532615,21.97969631,1909.7,1908.9,1.91363168]
[1688322532767,10.47454,1909.4,1908.9,1.6668]
[1688322532965,1.047454,1909.3,1908.7,8.97761235]
[1688322533175,10.4758,1909.2,1908.7,6.90582]
[1688322533463,10.4758,1909.2,1908.6,0.4627872]
[1688322533464,13.09469,1909.2,1908.6,0.4627872]
[1688322533705,13.09469,1909.2,1908.6,5.7021872]
[1688322533902,13.09469,1909.2,1908.7,0.91044836]
[1688322534073,1.309469,1909.1,1908.7,0.91044836]
[1688322534276,11.785899,1909.1,1908.7,0.91044836]
[1688322534711,11.785899,1909.1,1908.7,6.14959836]
[1688322534923,11.785899,1909.1,1908.7,5.23915]
[1688322536607,11.785899,1909.1,1908.7,10.47831]
[1688322537951,11.785899,1909.1,1908.7,5.23915]
[1688322538186,1.1785899,1909.0,1908.6,8.3198572]
[1688322538443,6.4170099,1909.0,1908.6,0.05]
[1688322538603,11.6554699,1909.0,1908.6,0.05]
[1688322538808,1.16554699,1908.9,1908.6,0.05]
[1688322539863,6.40417699,1908.9,1908.6,0.05]
[1688322540007,1.16554699,1908.9,1908.6,0.05]
[1688322540749,6.40419699,1908.9,1908.6,0.05]
[1688322542439,5.23865,1908.9,1908.6,0.05]
[1688322543309,5.23865,1908.9,1908.6,5.2894]
[1688322545909,12.80505,1909.0,1908.6,5.2894]
[1688322548176,12.80505,1909.0,1908.6,0.05]
[1688322552374,15.42422,1909.0,1908.6,0.05]
[1688322552579,17.13449596,1909.0,1908.6,0.05]
[1688322555172,15.42422,1909.0,1908.6,0.05]
[1688322555343,5.23782,1909.2,1908.7,0.961]
[1688322555671,2.2084,1909.2,1908.7,11.43902]
[1688322555865,7.44621,1909.2,1908.8,1.143902]
[1688322556180,7.44621,1909.2,1908.8,6.382692]
[1688322557365,7.44621,1909.2,1908.8,7.824192]
[1688322557970,12.68402,1909.2,1908.8,6.68029]
[1688322560887,12.68402,1909.2,1908.8,1.4415]
[1688322565270,12.68402,1909.2,1908.8,6.68038]
[1688322568892,12.68402,1909.2,1908.8,11.91927]
[1688322569064,12.68402,1909.2,1908.8,12.88027]
[1688322569264,12.68402,1909.2,1908.8,14.168297]
[1688322570385,2.2084,1909.2,1908.8,14.168297]
[1688322573498,4.61835311,1909.4,1908.9,0.961]
[1688322573499,0.43459311,1909.4,1908.9,0.961]
[1688322573905,5.67187311,1909.4,1909.0,5.2382]
[1688322574063,5.23725,1909.4,1909.0,13.73046]
[1688322574416,0.00430701,1909.4,1909.2,5.2377]
[1688322574592,0.00430701,1909.4,1909.2,10.47549]
[1688322574903,0.00430701,1909.4,1909.2,13.505141]
[1688322575270,10.47303,1909.7,1909.2,13.505141]
[1688322576404,0.00433628,1909.6,1909.2,13.505141]
[1688322576775,0.961,1909.5,1908.8,1.288027]
[1688322577092,10.47508,1909.3,1908.8,1.6722]
[1688322579066,13.09384,1909.3,1908.8,1.6722]
[1688322583511,13.09384,1909.3,1908.7,0.957]
[1688322583691,13.09384,1909.3,1908.6,4.09817694]
[1688322583873,2.905684,1909.2,1908.7,3.03273616]
[1688322584077,5.23811,1909.1,1908.7,2.1223]
[1688322584601,7.47801,1909.1,1908.7,2.1223]
[1688322587224,7.47801,1909.1,1908.7,2.09270549]
[1688322588410,2.2399,1909.1,1908.7,2.09270549]
[1688322594842,2.2399,1909.1,1908.7,7.33186549]
[1688322596420,2.2399,1909.1,1908.7,2.09270549]
[1688322598238,2.2399,1909.1,1908.7,7.33177549]
[1688322599343,2.2399,1909.1,1908.7,2.09270549]
[1688322600312,1.0383474,1909.1,1908.5,2.20867404]
[1688322600613,0.956,1908.9,1908.6,0.91051069]
[1688322600819,14.04922,1908.8,1908.2,1.769]
[1688322601049,13.09722,1908.8,1908.2,4.45652184]
[1688322601232,13.09722,1908.8,1908.3,1.35632657]
[1688322601233,10.47781,1908.8,1908.3,1.35632657]
[1688322601544,10.47781,1908.8,1908.3,11.87787218]
[1688322601709,10.47781,1908.8,1908.3,6.63772218]
[1688322601911,13.09725,1908.8,1908.4,0.959]
[1688322602239,13.09725,1908.8,1908.4,11.43872]
[1688322602627,13.09725,1908.8,1908.4,10.47972]
[1688322605256,13.09725,1908.8,1908.4,12.15652]
[1688322605736,13.09725,1908.8,1908.4,1.6768]
[1688322605943,14.565495,1908.8,1908.4,1.6768]
[1688322606141,14.565495,1908.8,1908.2,1.057]
[1688322606459,14.565495,1908.8,1908.3,0.91061315]
[1688322606460,17.25301684,1908.8,1908.3,0.91061315]
[1688322606619,17.25301684,1908.8,1908.2,1.7768]
[1688322607022,2.3947,1908.7,1908.2,1.7768]
[1688322607221,5.2395,1908.6,1908.2,1.7768]
[1688322607827,5.2395,1908.6,1908.2,7.01722]
[1688322609324,16.42747168,1908.7,1908.2,7.01722]
[1688322611475,11.18816168,1908.7,1908.2,7.01722]
[1688322612305,11.18816168,1908.7,1908.2,12.25776]
[1688322612306,2.3947,1908.7,1908.2,12.25776]
[1688322612449,7.63386,1908.7,1908.2,12.25776]
[1688322612867,14.5271,1908.7,1908.2,12.25776]
[1688322614382,14.5271,1908.7,1908.2,7.01722]
[1688322617382,28.92744184,1908.7,1908.2,0.1]
[1688322617555,9.64823184,1908.6,1908.2,0.1]
[1688322617877,13.09942,1908.5,1908.2,0.1]
[1688322618175,15.78694184,1908.5,1908.2,0.1]
[1688322618380,2.68752184,1908.4,1908.2,0.1]
[1688322618557,13.36940218,1908.3,1908.2,0.1]
[1688322619150,10.74927218,1908.3,1908.2,0.1]
[1688322621483,13.36940218,1908.3,1908.2,0.1]
[1688322622147,10.74927218,1908.3,1908.2,0.1]
[1688322623653,5.50901218,1908.3,1908.2,0.1]
[1688322627965,0.26875218,1908.3,1908.2,0.1]
[1688322628597,10.48034,1908.4,1908.2,0.1]
[1688322629926,0.4279146,1908.5,1908.2,0.1]
[1688322630084,3.3557,1908.7,1908.2,0.1]
[1688322630085,2.3947,1908.7,1908.2,5.34053]
[1688322630285,7.63387,1908.7,1908.2,5.34053]
[1688322630802,12.87304,1908.7,1908.2,5.34053]
[1688322631872,13.28549469,1908.7,1908.2,5.34053]
[1688322633205,8.04632469,1908.7,1908.2,5.34053]
[1688322633391,9.78363466,1908.7,1908.2,5.34053]
[1688322634505,18.59837466,1908.7,1908.2,0.1]
[1688322635303,0.01653963,1908.6,1908.2,0.1]
[1688322635612,13.09942,1908.5,1908.2,0.1]
[1688322635774,5.24026,1908.3,1908.2,0.1]
[1688322637812,10.48052,1908.3,1908.2,0.1]
[1688322639917,5.24026,1908.3,1908.2,0.1]
[1688322649131,11.790252,1908.4,1908.2,0.1]
[1688322649330,10.48031,1908.4,1908.2,0.1]
[1688322649530,5.66295325,1908.5,1908.2,0.1]
[1688322649734,10.49568963,1908.6,1908.2,0.1]
[1688322649909,0.01653963,1908.6,1908.2,0.1]
[1688322650110,2.3947,1908.7,1908.2,6.29652]
[1688322650308,2.3947,1908.7,1908.3,0.629652]
[1688322651300,0.41065885,1908.9,1908.4,2.68752184]
[1688322651521,0.41065885,1908.9,1908.5,13.57913]
[1688322651799,30.56,1909.1,1908.6,2.68752184]
[1688322652016,5.23807,1909.1,1908.7,0.48]
[1688322652211,10.999947,1909.1,1908.5,11.45914999]
[1688322653504,10.999947,1909.1,1908.6,0.957]
[1688322653835,10.999947,1909.1,1908.6,6.19636]
[1688322655153,5.761877,1909.1,1908.6,6.19636]
[1688322656132,5.761877,1909.1,1908.7,0.00540273]
[1688322656454,5.761877,1909.1,1908.7,0.00534404]
[1688322656648,5.761877,1909.1,1908.6,11.43572]
[1688322660036,5.761877,1909.1,1908.7,0.0066347]
[1688322660235,5.761877,1909.1,1908.6,11.43572]
[1688322660458,5.761877,1909.1,1908.7,0.00578856]
[1688322660624,5.761877,1909.1,1908.6,11.43572]
[1688322660825,5.761877,1909.1,1908.7,0.00596207]
[1688322661020,10.999947,1909.1,1908.7,0.00596207]
[1688322661252,10.999947,1909.1,1908.6,0.957]
[1688322661453,10.999947,1909.1,1908.2,0.64965978]
[1688322661454,9.29551654,1909.0,1908.2,0.64965978]
[1688322661672,10.47796,1908.8,1908.3,0.017738]
[1688322661958,10.47796,1908.8,1908.2,5.34042]
[1688322662131,14.207389,1908.8,1908.2,1.453997]
[1688322662325,14.207389,1908.8,1908.2,0.1]
[1688322662760,8.968389,1908.8,1908.2,6.98113]
[1688322662935,14.207349,1908.8,1908.2,6.98107]
[1688322663267,8.968389,1908.8,1908.2,6.98107]
[1688322663556,8.968389,1908.8,1908.2,12.22161]
[1688322663730,14.207279,1908.8,1908.2,8.499121]
[1688322664660,8.968319,1908.8,1908.2,8.499121]
[1688322664863,8.968319,1908.8,1908.2,1.7406]
[1688322664864,14.207209,1908.8,1908.2,1.7406]
[1688322665050,0.01653963,1908.7,1908.2,1.7406]
[1688322665226,5.23951,1908.6,1908.2,1.7406]
[1688322665427,13.09874,1908.6,1908.2,0.1]
[1688322665631,1.309874,1908.5,1908.2,0.1]
[1688322665856,11.789374,1908.5,1908.2,0.1]
[1688322666079,9.169474,1908.5,1908.2,0.1]
[1688322666239,14.409224,1908.5,1908.2,0.1]
[1688322666429,6.549624,1908.5,1908.2,0.1]
[1688322666632,0.6549624,1908.4,1908.2,0.1]
[1688322666833,10.48052,1908.3,1908.2,0.1]
[1688322667340,5.24026,1908.3,1908.2,0.1]
[1688322667538,11.1352924,1908.4,1908.2,0.1]
[1688322671112,6.099854,1908.5,1908.2,0.1]
[1688322671113,2.1701,1908.5,1908.2,0.1]
[1688322671299,0.41913742,1908.8,1908.2,14.15734]
[1688322671505,7.50863,1908.9,1908.3,0.96]
[1688322671681,7.50863,1908.9,1908.4,5.23983]
[1688322671881,12.74743,1908.9,1908.4,5.23983]
[1688322672304,13.175308,1908.9,1908.4,5.23983]
[1688322672514,7.936508,1908.9,1908.4,5.23983]
[1688322672887,13.175268,1908.9,1908.4,5.23983]
[1688322673078,1.3175268,1908.8,1908.4,5.23983]
[1688322673278,14.4148468,1908.8,1908.3,6.20005]
[1688322673482,14.4148468,1908.8,1908.2,7.03046]
[1688322674201,10.47912,1908.6,1908.2,0.1]
[1688322674412,6.287652,1908.5,1908.2,0.1]
[1688322674586,10.47916,1908.6,1908.2,0.1]
[1688322674781,5.23955,1908.6,1908.2,0.1]
[1688322676220,5.23908,1908.8,1908.2,10.58102]
[1688322676420,4.275578,1908.9,1908.3,0.957]
[1688322676620,6.8280358,1908.9,1908.4,10.47975]
[1688322676924,0.427878,1908.9,1908.4,13.09974]
[1688322677229,35.79846,1909.0,1908.4,14.05674]
[1688322677405,10.47699,1909.0,1908.4,14.05674]
[1688322677806,10.91601999,1909.0,1908.4,14.05674]
[1688322678610,13.53518999,1909.0,1908.4,5.23977]
[1688322678829,1.353519,1908.9,1908.3,11.4372]
[1688322679023,10.47818,1908.8,1908.3,11.4372]
[1688322680092,10.47818,1908.8,1908.3,6.19709]
[1688322683417,10.47818,1908.8,1908.3,5.24009]
[1688322684236,10.47818,1908.8,1908.3,10.48035]
[1688322684448,5.23907,1908.8,1908.3,10.48035]
[1688322685634,5.23907,1908.8,1908.3,12.251142]
[1688322689453,5.23907,1908.8,1908.3,10.48035]
[1688322698522,8.91906863,1908.9,1908.3,14.06148]
[1688322698523,0.01653963,1908.9,1908.3,14.06148]
[1688322698723,0.01653963,1908.9,1908.5,0.96]
[1688322698936,0.01653963,1908.9,1908.6,5.23938]
[1688322699138,5.25515963,1908.9,1908.6,5.23938]
[1688322701574,5.25515963,1908.9,1908.5,11.43911]
[1688322701769,0.01653963,1908.9,1908.5,13.050883]
[1688322704071,0.01653963,1908.9,1908.5,7.811403]
[1688322704778,5.25515963,1908.9,1908.5,7.811403]
[1688322705146,5.25515963,1908.9,1908.5,5.23963]
[1688322705465,10.49377963,1908.9,1908.4,13.49439]
[1688322705774,10.49377963,1908.9,1908.4,12.53839]
[1688322705936,12.00377963,1908.9,1908.4,12.53839]
[1688322707858,0.01653963,1908.9,1908.4,16.18691184]
[1688322708059,0.12904437,1909.2,1908.5,4.30621302]
[1688322708258,30.56,1909.3,1908.7,13.09785]
[1688322708259,32.8986,1909.3,1908.7,13.09785]
[1688322708476,5.23679,1909.6,1908.8,3.16752184]
[1688322708477,30.56,1909.6,1908.8,3.16752184]
[1688322708779,0.00386752,1909.5,1909.0,13.09557]
[1688322708977,0.00386752,1909.5,1909.2,5.23775]
[1688322709197,0.00386752,1909.5,1909.2,10.47554]
[1688322709763,0.00386752,1909.5,1909.2,11.42654]
[1688322710011,0.00386752,1909.5,1909.3,2.094654]
[1688322710213,0.00386752,1909.5,1909.4,5.23724]
[1688322710424,0.00386752,1909.5,1909.3,12.569264]
[1688322710566,0.00386752,1909.5,1909.3,11.42661]
[1688322710759,5.23654,1909.7,1909.3,11.42661]
[1688322710965,5.23654,1909.7,1909.3,10.47461]
[1688322711810,11.77079163,1909.7,1909.2,6.19362]
[1688322711971,0.00291089,1909.6,1909.2,5.23762]
[1688322712165,5.23961089,1909.6,1909.2,5.23762]
[1688322713284,0.00291089,1909.6,1909.2,10.47541]
[1688322713903,10.48974963,1909.7,1909.2,10.47541]
[1688322714090,10.48974963,1909.7,1909.2,11.880053]
[1688322714399,5.25307963,1909.7,1909.2,11.880053]
[1688322714972,0.00290491,1909.6,1909.2,11.880053]
[1688322715972,0.01653963,1909.7,1909.2,11.880053]
[1688322716891,0.00290491,1909.6,1909.2,11.880053]
[1688322717211,0.00290491,1909.6,1909.2,14.498943]
[1688322717510,0.00290491,1909.6,1909.3,1.4498943]
[1688322717713,0.00290491,1909.6,1909.3,6.6872843]
[1688322717914,5.25298963,1909.7,1909.3,6.6872843]
[1688322718114,5.25298963,1909.7,1909.3,5.23739]
[1688322718871,0.00290491,1909.6,1909.3,10.47491]
[1688322719792,0.00290491,1909.6,1909.3,13.09367]
[1688322719981,2.1714,1910.0,1909.3,13.09367]
[1688322720377,30.56,1910.1,1909.3,15.78119184]
[1688322720581,30.56,1910.1,1909.6,10.47334]
[1688322720831,3.8175,1910.2,1909.6,10.47334]
[1688322721116,0.00295241,1910.0,1909.6,11.43334]
[1688322721286,0.00295241,1910.0,1909.7,0.48]
[1688322721492,0.00295241,1910.0,1909.7,5.71627]
[1688322721793,12.64175,1910.2,1909.7,5.71627]
[1688322721986,14.23604568,1910.2,1909.7,5.71627]
[1688322722186,14.23604568,1910.2,1909.6,5.23655]
[1688322722386,16.85356568,1910.2,1909.6,5.23655]
[1688322723034,0.00296714,1910.1,1909.6,5.23655]
[1688322723338,10.49042677,1910.1,1909.5,10.47373]
[1688322723642,10.49042677,1910.1,1909.6,1.527373]
[1688322723803,10.49042677,1910.1,1909.7,5.23628]
[1688322725004,0.01950677,1910.1,1909.7,10.4727]
[1688322725528,0.01950677,1910.1,1909.7,14.04691]
[1688322738266,0.01950677,1910.1,1909.7,13.09091]
[1688322738468,2.18910677,1910.1,1909.7,13.09091]
[1688322738668,2.18910677,1910.1,1909.7,14.6478383]
[1688322740851,10.11201861,1910.1,1909.3,10.47471]
[1688322741050,10.11201861,1910.1,1909.3,5.23733]
[1688322741051,19.59346861,1910.1,1909.3,5.23733]
[1688322741481,19.59346861,1910.1,1909.3,10.47485]
[1688322742051,19.59346861,1910.1,1909.3,5.23733]
[1688322742886,19.59346861,1910.1,1909.3,10.47485]
[1688322743186,8.15194686,1910.0,1909.3,17.25769384]
[1688322743370,5.2356,1910.0,1909.5,5.23683]
[1688322743576,10.4712,1910.0,1909.5,5.23683]
[1688322743970,0.00296308,1909.9,1909.5,5.23683]
[1688322744151,5.23883308,1909.9,1909.5,5.23683]
[1688322744857,5.23883308,1909.9,1909.4,12.58498]
[1688322745058,15.19627639,1909.9,1909.4,0.48]
[1688322745259,0.961,1909.8,1909.3,0.48]
[1688322745561,5.23653,1909.7,1909.3,0.48]
[1688322745996,0.0029368,1909.6,1909.3,0.48]
[1688322746858,5.23653,1909.7,1909.3,0.48]
[1688322747197,5.23653,1909.7,1909.3,1.738612]
[1688322747896,0.00320379,1909.6,1909.3,1.738612]
[1688322748989,5.23653,1909.7,1909.3,1.738612]
[1688322750097,0.00320379,1909.6,1909.3,1.738612]
[1688322750713,0.00320379,1909.6,1909.4,2.68752184]
[1688322750885,2.2477,1910.0,1909.5,14.79817218]
[1688322751087,12.3880807,1910.2,1909.5,18.18889402]
[1688322751281,4.1653007,1910.2,1909.5,18.18889402]
[1688322751492,2.6638007,1910.2,1909.5,18.45663373]
[1688322751807,7.8989507,1910.2,1909.5,18.45663373]
[1688322752009,0.00296414,1910.1,1909.6,1.84566337]
[1688322752175,0.00296414,1910.1,1909.7,10.95256]
[1688322752380,0.00296414,1910.1,1909.7,12.55566]
[1688322753404,0.00296414,1910.1,1909.7,15.17387]
[1688322754617,10.47367414,1910.1,1909.7,0.48]
[1688322754922,10.47367414,1910.1,1909.6,1.84566337]
[1688322754923,1.04736741,1910.0,1909.6,5.23661]
[1688322755084,1.04736741,1910.0,1909.6,5.23666]
[1688322755085,5.23568,1910.0,1909.6,5.23666]
[1688322756017,0.00294663,1909.9,1909.6,5.23666]
[1688322756913,5.23562,1910.0,1909.6,5.23666]
[1688322759123,5.23562,1910.0,1909.6,5.18666]
[1688322759902,0.00294663,1909.9,1909.6,5.18666]
[1688322761107,10.99856329,1909.9,1909.4,8.65824]
[1688322761432,2.71750329,1909.9,1909.5,5.71691]
[1688322761800,2.71750329,1909.9,1909.5,0.48]
[1688322762021,7.95339329,1909.9,1909.5,0.48]
[1688322762224,7.95339329,1909.9,1909.5,5.71696]
[1688322762419,7.95339329,1909.9,1909.5,0.48]
[1688322762630,7.95339329,1909.9,1909.5,5.71693]
[1688322763016,2.71750329,1909.9,1909.5,5.71693]
[1688322763631,2.19364663,1909.9,1909.5,13.57238]
[1688322765934,2.19364663,1909.9,1909.5,10.9539]
[1688322774671,12.66541663,1909.9,1909.2,8.00847]
[1688322774960,12.66541663,1909.9,1909.3,7.37429]
[1688322774961,14.29651663,1909.9,1909.3,7.37429]
[1688322775160,1.26654166,1909.8,1909.3,7.37429]
[1688322775419,6.50270166,1909.8,1909.3,12.61181]
[1688322775981,0.00292762,1909.7,1909.3,12.61181]
[1688322777021,14.29381,1909.9,1909.3,12.61181]
[1688322777185,10.748843,1909.9,1909.3,12.61181]
[1688322777904,10.748843,1909.9,1909.3,15.23057]
[1688322777905,0.00293638,1909.8,1909.3,15.23057]
[1688322780013,0.00293638,1909.8,1909.3,16.19157]
[1688322781317,5.23910638,1909.8,1909.3,12.61181]
[1688322781618,0.52391064,1909.7,1909.3,12.61183]
[1688322782113,0.52683129,1909.7,1909.3,12.61183]
[1688322783587,0.52683129,1909.7,1909.3,7.37431]
[1688322783981,0.52683129,1909.7,1909.3,7.37432]
[1688322784218,0.00292065,1909.7,1909.3,12.61184]
[1688322786502,0.00292065,1909.7,1909.3,7.37432]
[1688322789321,0.00292065,1909.7,1909.3,8.32632]
[1688322790602,0.00292065,1909.7,1909.3,13.56384]
[1688322790906,0.00292065,1909.7,1909.4,0.961]
[1688322791108,0.00292065,1909.7,1909.3,15.49833971]
[1688322791109,0.00292065,1909.7,1909.5,14.05342]
[1688322791402,0.00292065,1909.7,1909.5,15.458762]
[1688322791803,0.00292065,1909.7,1909.5,14.497762]
[1688322792010,2.20723963,1909.9,1909.5,14.497762]
[1688322792934,0.00293489,1909.8,1909.5,14.497762]
[1688322793928,2.20723963,1909.9,1909.5,14.497762]
[1688322794942,0.00293489,1909.8,1909.5,14.497762]
[1688322795139,0.00293489,1909.8,1909.7,5.23642]
[1688322795948,2.20723963,1909.9,1909.7,5.23642]
[1688322796839,0.00293489,1909.8,1909.7,5.23642]
[1688322797556,0.00293489,1909.8,1909.6,5.23652]
[1688322797805,0.00293489,1909.8,1909.3,5.71736]
[1688322797806,5.23908489,1909.8,1909.3,5.71736]
[1688322797930,2.86218649,1909.8,1909.4,5.23713]
[1688322798121,1.0,1909.7,1909.4,5.23713]
[1688322799049,0.00290491,1909.6,1909.4,5.23713]
[1688322799816,0.00290491,1909.6,1909.3,7.38326]
[1688322800147,1.0,1909.7,1909.3,12.62059]
[1688322800369,1.38621865,1909.7,1909.3,5.7175]
[1688322800935,0.00291588,1909.6,1909.3,5.7175]
[1688322801944,1.38621865,1909.7,1909.3,5.7175]
[1688322802969,0.00292137,1909.6,1909.3,5.7175]
[1688322804069,1.0,1909.7,1909.3,5.7175]
[1688322804965,0.00292137,1909.6,1909.3,5.7175]
[1688322805396,0.00292137,1909.6,1909.3,10.95502]
[1688322805968,1.0,1909.7,1909.3,10.95502]
[1688322807010,0.00292137,1909.6,1909.3,10.95502]
[1688322808012,1.0,1909.7,1909.3,10.95502]
[1688322808998,0.00292137,1909.6,1909.3,10.95502]
[1688322809868,1.0,1909.7,1909.3,5.7175]
[1688322810074,1.95292284,1909.7,1909.3,5.7175]
[1688322810784,1.0,1909.7,1909.3,5.7175]
[1688322811084,0.00292137,1909.6,1909.3,5.7175]